bitfinex/quotes_BTCUSD_20250716
["timestamp","ask_amount","ask_price","bid_price","bid_amount"]
[1752676146245,5.051e-05,118450.0,118440.0,1.83729127]
[1752676146465,0.0168824,118460.0,118450.0,0.56627388]
[1752676146685,0.02532392,118460.0,118450.0,1.7177325]
[1752676147103,0.03376551,118460.0,118450.0,1.7177325]
[1752676147523,0.0168824,118460.0,118450.0,1.7177325]
[1752676147965,0.19515721,118460.0,118450.0,1.70929062]
[1752676148183,0.2035988,118460.0,118450.0,1.71773264]
[1752676148396,0.03476537,118460.0,118450.0,1.72617452]
[1752676148631,0.0178824,118460.0,118450.0,1.72617452]
[1752676148828,0.02632378,118460.0,118450.0,1.72617452]
[1752676149058,0.0347653,118460.0,118450.0,1.72617452]
[1752676149282,0.02632378,118460.0,118450.0,1.72617452]
[1752676149506,0.001,118460.0,118450.0,1.8116848]
[1752676149935,0.00944116,118460.0,118450.0,1.6793248]
[1752676150145,0.0178824,118460.0,118450.0,1.8116848]
[1752676151065,0.0178824,118460.0,118450.0,1.31618484]
[1752676151293,0.001,118460.0,118450.0,1.31618484]
[1752676151501,0.001,118460.0,118450.0,2.94735412]
[1752676151716,0.001,118460.0,118450.0,2.41678269]
[1752676152543,0.00944102,118460.0,118450.0,2.41678269]
[1752676152756,0.00844102,118460.0,118450.0,2.41678269]
[1752676153197,0.00844102,118460.0,118450.0,2.41778269]
[1752676153403,0.01688211,118460.0,118450.0,2.41778269]
[1752676153845,0.00844102,118460.0,118450.0,2.41778269]
[1752676154649,0.01688155,118470.0,118460.0,0.53415749]
[1752676154845,0.01688155,118470.0,118460.0,1.27250643]
[1752676155095,0.02532193,118470.0,118460.0,1.27558643]
[1752676155419,0.03376281,118470.0,118460.0,1.27558643]
[1752676155658,0.21102287,118470.0,118460.0,1.27558643]
[1752676156281,0.20258242,118470.0,118460.0,1.26714527]
[1752676156477,0.20258242,118470.0,118460.0,1.27558651]
[1752676156846,0.19414175,118470.0,118460.0,1.26714527]
[1752676157049,0.19414139,118470.0,118460.0,1.27558651]
[1752676157514,0.20258234,118470.0,118460.0,1.27558651]
[1752676157728,0.20258234,118470.0,118460.0,1.26714527]
[1752676157968,0.19414175,118470.0,118460.0,0.86359866]
[1752676158178,0.21449006,118470.0,118460.0,0.99085866]
[1752676159878,0.21449006,118470.0,118460.0,0.34]
[1752676160097,0.21449006,118470.0,118460.0,0.99085866]
[1752676160297,0.21449006,118470.0,118460.0,0.85853866]
[1752676160729,0.21449006,118470.0,118460.0,0.34]
[1752676160897,0.21449006,118470.0,118460.0,0.99085866]
[1752676161277,0.21449006,118470.0,118460.0,0.85853866]
[1752676161483,0.21449006,118470.0,118460.0,0.99085866]
[1752676161616,0.21449006,118470.0,118460.0,0.85853866]
[1752676161823,0.21449006,118470.0,118460.0,0.99085866]
[1752676162485,0.21449006,118470.0,118460.0,0.65085866]
[1752676163837,0.21449006,118470.0,118460.0,0.51853866]
[1752676164054,0.21449006,118470.0,118460.0,0.65081866]
[1752676164908,0.21449006,118470.0,118460.0,0.51853866]
[1752676165347,0.2042708,118470.0,118460.0,0.82477202]
[1752676165573,0.00843988,118480.0,118470.0,0.52570066]
[1752676165787,0.02027841,118490.0,118480.0,0.53412522]
[1752676166009,0.03730862,118490.0,118480.0,1.71401228]
[1752676166226,0.00355159,118490.0,118480.0,1.71704228]
[1752676166447,0.02886874,118490.0,118480.0,1.73274228]
[1752676166653,0.21453826,118490.0,118480.0,1.73274242]
[1752676166863,0.03730812,118490.0,118480.0,1.74118216]
[1752676167077,0.02886874,118490.0,118480.0,1.21025542]
[1752676167294,0.21453818,118490.0,118480.0,0.70410491]
[1752676167515,0.21653818,118490.0,118480.0,1.21025549]
[1752676167740,0.21653883,118490.0,118480.0,1.21025549]
[1752676167968,0.20809973,118490.0,118480.0,1.17767587]
[1752676168186,0.19122118,118490.0,118480.0,1.17767587]
[1752676168397,0.19122118,118490.0,118480.0,1.16923585]
[1752676168608,0.18922118,118490.0,118480.0,1.16923585]
[1752676168838,0.18078173,118490.0,118480.0,1.16923585]
[1752676169079,0.18178173,118490.0,118480.0,1.1776758]
[1752676169310,0.19022104,118490.0,118480.0,1.1776758]
[1752676169549,0.19022104,118490.0,118480.0,1.18611568]
[1752676169794,0.19022104,118490.0,118480.0,1.16923585]
[1752676170027,0.19022104,118490.0,118480.0,1.1861159]
[1752676170251,0.19022104,118490.0,118480.0,1.04539595]
[1752676170470,0.19022104,118490.0,118480.0,1.17767595]
[1752676170698,0.19022104,118490.0,118480.0,1.18611597]
[1752676171166,0.19022104,118490.0,118480.0,1.17767595]
[1752676171419,0.19022104,118490.0,118480.0,1.1861159]
[1752676171641,0.19022104,118490.0,118480.0,1.18611583]
[1752676171855,0.19022104,118490.0,118480.0,1.17767595]
[1752676172093,0.19022104,118490.0,118480.0,1.19455578]
[1752676172739,0.19022104,118490.0,118480.0,1.19455535]
[1752676172956,0.19022104,118490.0,118480.0,1.18611554]
[1752676173180,0.02143043,118490.0,118480.0,1.18611554]
[1752676173410,0.02143043,118490.0,118480.0,1.19455535]
[1752676173629,0.01299069,118490.0,118480.0,1.19455492]
[1752676173850,0.02986924,118490.0,118480.0,1.19455492]
[1752676174080,0.03830812,118490.0,118480.0,1.19455492]
[1752676174533,0.20709873,118490.0,118480.0,1.18611518]
[1752676174759,0.20609873,118490.0,118480.0,1.18611518]
[1752676174976,0.01199047,118490.0,118480.0,1.19455492]
[1752676175210,0.01199047,118490.0,118480.0,1.3128652]
[1752676175211,0.00355159,118490.0,118480.0,1.3128652]
[1752676175434,0.00355159,118490.0,118480.0,1.5154252]
[1752676176277,0.01199047,118490.0,118480.0,1.5154252]
[1752676176715,0.00355159,118490.0,118480.0,1.5164252]
[1752676177344,0.00355159,118490.0,118480.0,4.2228932]
[1752676177982,0.00355159,118490.0,118480.0,4.23743405]
[1752676180851,0.00355159,118490.0,118480.0,4.76827762]
[1752676181509,0.00355159,118490.0,118480.0,4.26212704]
[1752676181944,0.00355159,118490.0,118480.0,2.09988261]
[1752676182155,0.00355159,118490.0,118480.0,2.66367919]
[1752676182574,0.02042957,118490.0,118480.0,2.53143919]
[1752676182797,0.0204295,118490.0,118480.0,2.66367919]
[1752676183007,0.02042943,118490.0,118480.0,2.66367919]
[1752676183448,0.01199047,118490.0,118480.0,2.66367919]
[1752676183846,0.01199047,118490.0,118480.0,2.53143919]
[1752676184061,0.01199047,118490.0,118480.0,2.66363919]
[1752676184270,0.00355159,118490.0,118480.0,2.66363919]
[1752676184703,0.00355159,118490.0,118480.0,2.53143919]
[1752676184838,0.00355159,118490.0,118480.0,2.66363919]
[1752676185923,0.00355159,118490.0,118480.0,7.06172962]
[1752676186155,0.00355159,118490.0,118480.0,6.92952962]
[1752676186357,0.00355159,118490.0,118480.0,7.01838362]
[1752676186603,0.00355159,118490.0,118480.0,6.51223304]
[1752676187005,0.00355159,118490.0,118480.0,6.55557904]
[1752676187859,0.00355159,118490.0,118480.0,7.06172962]
[1752676188843,0.00355159,118490.0,118480.0,7.06072962]
[1752676189099,0.00355159,118490.0,118480.0,7.08464922]
[1752676189307,0.00355159,118490.0,118480.0,7.08864922]
[1752676189927,0.0034,118510.0,118500.0,0.19409196]
[1752676190150,0.02027513,118510.0,118500.0,0.93200262]
[1752676190372,0.01183753,118510.0,118500.0,0.93503262]
[1752676190599,0.0202752,118510.0,118500.0,0.93503262]
[1752676190813,0.01183753,118510.0,118500.0,0.93503262]
[1752676191043,0.0223052,118510.0,118500.0,0.80283262]
[1752676191277,0.0552052,118510.0,118500.0,0.93200262]
[1752676191495,0.0552052,118510.0,118500.0,0.94403539]
[1752676191709,0.0552052,118510.0,118500.0,0.93200262]
[1752676191928,0.0202752,118510.0,118500.0,0.41691224]
[1752676192139,0.0202752,118510.0,118500.0,0.93502262]
[1752676192667,0.01183753,118510.0,118500.0,0.93502262]
[1752676193135,0.01183753,118510.0,118500.0,3.36540562]
[1752676193349,0.02027513,118510.0,118500.0,3.36540562]
[1752676193556,0.02027513,118510.0,118500.0,3.04704762]
[1752676194152,0.0034,118510.0,118500.0,3.04704762]
[1752676194373,0.02027513,118510.0,118500.0,3.04704762]
[1752676194625,0.01183746,118510.0,118500.0,3.04704762]
[1752676194872,0.02027506,118510.0,118500.0,0.93502262]
[1752676195376,0.02027506,118510.0,118500.0,3.09275362]
[1752676195803,0.02027506,118510.0,118500.0,2.96055362]
[1752676196021,0.02871281,118510.0,118500.0,3.09271362]
[1752676196240,0.02871281,118510.0,118500.0,2.96055362]
[1752676196487,0.02027506,118510.0,118500.0,3.09271362]
[1752676197425,0.02871281,118510.0,118500.0,3.09271362]
[1752676199025,0.02027506,118510.0,118500.0,3.09271362]
[1752676199251,0.03715077,118510.0,118500.0,2.98653962]
[1752676199466,0.02871281,118510.0,118500.0,2.78845662]
[1752676199694,0.02871281,118510.0,118500.0,2.77579762]
[1752676199918,0.03715063,118510.0,118500.0,2.61678662]
[1752676200154,0.03715063,118510.0,118500.0,2.60630662]
[1752676200413,0.23411565,118510.0,118500.0,1.04103275]
[1752676200657,0.2256779,118510.0,118500.0,0.95981923]
[1752676200884,0.2256779,118510.0,118500.0,0.84436283]
[1752676201104,0.2256779,118510.0,118500.0,0.98518423]
[1752676201322,0.2256779,118510.0,118500.0,0.99362269]
[1752676201542,0.2256779,118510.0,118500.0,1.0104994]
[1752676201825,0.24255403,118510.0,118500.0,1.0104994]
[1752676202040,0.23411621,118510.0,118500.0,0.66737038]
[1752676202256,0.22567825,118510.0,118500.0,0.65027038]
[1752676202685,0.22567825,118510.0,118500.0,0.51811038]
[1752676202908,0.22567825,118510.0,118500.0,0.65027038]
[1752676203556,0.19410855,118490.0,118480.0,1.08838337]
[1752676203795,0.22260945,118490.0,118480.0,1.08536337]
[1752676204030,0.22260945,118490.0,118480.0,1.21752337]
[1752676204287,0.22260945,118490.0,118480.0,1.08536337]
[1752676204519,0.22260945,118490.0,118480.0,0.87752337]
[1752676204737,0.22260945,118490.0,118480.0,0.35941299]
[1752676204965,0.22260945,118490.0,118480.0,0.69941299]
[1752676205181,0.30811973,118490.0,118480.0,0.36041299]
[1752676205396,0.30811973,118490.0,118480.0,0.22825299]
[1752676205624,0.30811973,118490.0,118480.0,0.36041299]
[1752676205837,0.30811973,118490.0,118480.0,0.35941299]
[1752676206284,0.30911973,118490.0,118480.0,0.87752337]
[1752676206738,0.30911973,118490.0,118480.0,0.67496337]
[1752676207824,0.30911973,118490.0,118480.0,0.02469299]
[1752676208061,0.30911973,118490.0,118480.0,0.67496337]
[1752676208360,0.30911973,118490.0,118480.0,0.65027038]
[1752676208606,0.30911973,118490.0,118480.0,0.67585255]
[1752676208841,0.30911973,118490.0,118480.0,0.54369255]
[1752676209056,0.30811973,118490.0,118480.0,0.02558217]
[1752676209278,0.31011973,118490.0,118480.0,0.02558217]
[1752676209500,0.31011973,118490.0,118460.0,0.343]
[1752676209501,0.21670051,118470.0,118460.0,0.003]
[1752676209719,0.21873051,118470.0,118460.0,0.13531159]
[1752676210157,0.22184051,118470.0,118460.0,0.13531159]
[1752676211025,0.22184051,118470.0,118460.0,0.64177345]
[1752676212534,0.22284051,118470.0,118460.0,0.64177345]
[1752676212753,0.22284051,118470.0,118460.0,0.66711253]
[1752676214922,0.30835079,118470.0,118460.0,0.02849067]
[1752676215129,0.30835079,118470.0,118460.0,0.16065067]
[1752676217127,0.30835079,118470.0,118460.0,0.66711253]
[1752676217354,0.22284051,118470.0,118460.0,0.66711253]
[1752676218192,0.22284051,118470.0,118460.0,0.16065067]
[1752676218415,0.22284051,118470.0,118460.0,0.66711253]
[1752676219794,0.18670051,118470.0,118460.0,1.06564886]
[1752676220014,0.001,118470.0,118460.0,1.26207285]
[1752676220221,0.00944045,118470.0,118460.0,1.39130331]
[1752676220444,0.026322,118470.0,118460.0,1.3226603]
[1752676220660,0.00944045,118470.0,118460.0,1.3226603]
[1752676220879,0.01688112,118470.0,118460.0,1.1905003]
[1752676221128,0.01688112,118470.0,118460.0,1.3236603]
[1752676221355,0.02532185,118470.0,118460.0,1.3236603]
[1752676221574,0.01688104,118470.0,118460.0,1.3236603]
[1752676222001,0.01688104,118470.0,118460.0,1.3736603]
[1752676222432,0.20258163,118470.0,118460.0,1.22461776]
[1752676222649,0.20258163,118470.0,118460.0,1.34276045]
[1752676222650,0.02532207,118470.0,118460.0,1.34276045]
[1752676222859,0.19414118,118470.0,118460.0,1.36641921]
[1752676223070,0.19414118,118470.0,118460.0,1.33431921]
[1752676223273,0.19414118,118470.0,118460.0,1.35120175]
[1752676223462,0.19414118,118470.0,118460.0,0.8194159]
[1752676223722,0.19414118,118470.0,118460.0,1.33431928]
[1752676223932,0.02532207,118470.0,118460.0,1.34276073]
[1752676224114,0.01688126,118470.0,118460.0,1.35964327]
[1752676224578,0.025322,118470.0,118460.0,1.35964327]
[1752676224871,0.20258221,118470.0,118460.0,1.35120211]
[1752676225082,0.01688141,118470.0,118460.0,1.35964327]
[1752676225555,0.00844017,118480.0,118470.0,0.52570051]
[1752676225772,0.19412529,118480.0,118470.0,1.02882192]
[1752676225992,0.19412529,118480.0,118470.0,1.04570347]
[1752676226181,0.19410833,118490.0,118480.0,0.17724496]
[1752676226431,0.1856693,118490.0,118480.0,0.81808696]
[1752676226654,0.17723006,118490.0,118480.0,0.82108696]
[1752676226869,0.17723006,118490.0,118480.0,0.82952706]
[1752676227299,0.17723006,118490.0,118480.0,0.84640689]
[1752676227558,0.17723006,118490.0,118480.0,0.6522821]
[1752676227772,0.17823006,118490.0,118480.0,0.64384186]
[1752676228199,0.17723006,118490.0,118480.0,0.64384186]
[1752676228841,0.21527006,118490.0,118480.0,0.50646186]
[1752676229025,0.21527006,118490.0,118480.0,0.63878186]
[1752676229676,0.17725992,118470.0,118460.0,0.07849067]
[1752676229888,0.21439992,118470.0,118460.0,0.21085067]
[1752676230148,0.21439992,118470.0,118460.0,0.16085067]
[1752676230997,0.21439992,118470.0,118460.0,0.16285067]
[1752676231636,0.21439992,118470.0,118460.0,0.03049067]
[1752676231851,0.21439992,118470.0,118460.0,0.16285067]
[1752676232694,0.25430089,118490.0,118470.0,1.80948405]
[1752676232695,0.0157,118490.0,118470.0,1.80948405]
[1752676232914,0.01687784,118490.0,118480.0,0.53922486]
[1752676233149,0.01687784,118490.0,118480.0,0.5792646]
[1752676233150,0.02531694,118490.0,118480.0,0.5792646]
[1752676233372,0.02531694,118490.0,118480.0,1.07243966]
[1752676233373,0.03375654,118490.0,118480.0,1.07243966]
[1752676233598,0.19410862,118490.0,118480.0,0.86359463]
[1752676233821,0.19410798,118490.0,118480.0,0.3451]
[1752676234062,0.20470786,118490.0,118480.0,0.98716186]
[1752676234281,0.18782945,118490.0,118480.0,0.4807]
[1752676234512,0.18782945,118490.0,118480.0,0.99919463]
[1752676234756,0.18566945,118490.0,118480.0,0.67297773]
[1752676234978,0.01687884,118490.0,118480.0,1.19631956]
[1752676235199,0.18566945,118490.0,118480.0,1.17584698]
[1752676235443,0.18566945,118490.0,118480.0,1.18428693]
[1752676235659,0.18566945,118490.0,118480.0,1.19272681]
[1752676235879,0.17034083,118500.0,118490.0,0.34]
[1752676236115,0.02686749,118500.0,118490.0,0.85156186]
[1752676236328,0.02686749,118500.0,118490.0,0.52233014]
[1752676236557,0.02902749,118500.0,118490.0,1.04567083]
[1752676236763,0.2241454,118500.0,118490.0,0.47904]
[1752676237404,0.2241454,118500.0,118490.0,0.98550186]
[1752676237620,0.2241454,118500.0,118490.0,0.47904]
[1752676237871,0.2210654,118500.0,118490.0,1.15429247]
[1752676238095,0.03608903,118500.0,118490.0,1.164832]
[1752676238312,0.00998986,118500.0,118490.0,1.18471055]
[1752676238546,0.00155162,118500.0,118490.0,1.19314958]
[1752676238750,0.00998979,118500.0,118490.0,1.22444958]
[1752676238967,0.00155162,118500.0,118490.0,1.22444958]
[1752676239201,0.00155162,118500.0,118490.0,2.65449272]
[1752676239639,0.00155162,118500.0,118490.0,2.14803086]
[1752676240758,0.0034,118510.0,118500.0,0.53409196]
[1752676240970,0.0034,118510.0,118500.0,1.65352596]
[1752676241190,0.0034,118510.0,118500.0,1.66992596]
[1752676241614,0.0034,118510.0,118500.0,3.92787496]
[1752676241832,0.0004,118520.0,118510.0,0.53407557]
[1752676242073,0.0004,118520.0,118510.0,1.19785743]
[1752676242303,0.0004,118520.0,118510.0,1.20085743]
[1752676243071,0.0004,118520.0,118510.0,1.21605743]
[1752676244275,0.0004,118520.0,118510.0,2.22848671]
[1752676245230,0.03714568,118530.0,118520.0,0.70052106]
[1752676245471,0.02581535,118530.0,118520.0,0.85341831]
[1752676245967,0.01737843,118530.0,118520.0,0.85341831]
[1752676246207,0.02581446,118530.0,118520.0,0.85341831]
[1752676246448,0.01737867,118530.0,118520.0,0.85341831]
[1752676246692,0.01687286,118530.0,118520.0,0.85333831]
[1752676246990,0.00843625,118530.0,118520.0,0.85533831]
[1752676247223,0.00843707,118530.0,118520.0,0.85533831]
[1752676247453,0.18560644,118530.0,118520.0,0.84690142]
[1752676247694,0.17717019,118530.0,118520.0,0.33200246]
[1752676247925,0.1687344,118530.0,118520.0,0.8469015]
[1752676248394,0.16029861,118530.0,118520.0,0.8469015]
[1752676248607,0.16029861,118530.0,118520.0,0.8553386]
[1752676248834,0.15186282,118530.0,118520.0,0.86377563]
[1752676249052,0.17152403,118540.0,118530.0,0.51717026]
[1752676249277,0.17152403,118540.0,118530.0,0.98776186]
[1752676249278,0.17167553,118540.0,118530.0,0.98776186]
[1752676249500,0.17383553,118540.0,118530.0,0.4813]
[1752676249716,0.17383553,118540.0,118530.0,0.98776186]
[1752676249929,0.17383553,118540.0,118530.0,0.84856186]
[1752676250148,0.20941553,118540.0,118530.0,0.98566186]
[1752676250561,0.20941553,118540.0,118530.0,0.99270424]
[1752676250804,0.20941553,118540.0,118530.0,1.04270424]
[1752676251670,0.0029515,118540.0,118530.0,2.04516503]
[1752676251898,0.0034,118550.0,118540.0,0.76936845]
[1752676252172,0.0034,118550.0,118540.0,1.65798545]
[1752676252392,0.0034,118550.0,118540.0,2.67090917]
[1752676252620,0.01183353,118550.0,118540.0,0.78332445]
[1752676252846,0.00843461,118550.0,118540.0,0.76828145]
[1752676253078,0.0004,118560.0,118550.0,0.52557547]
[1752676253300,0.0004,118560.0,118550.0,2.40224192]
[1752676253547,0.01726823,118560.0,118550.0,1.2932262]
[1752676253793,0.02553375,118560.0,118550.0,0.7111052]
[1752676254051,0.02553375,118560.0,118550.0,1.21756706]
[1752676254052,0.00023126,118560.0,118550.0,1.21756706]
[1752676254312,0.02553347,118560.0,118550.0,0.69423547]
[1752676254554,0.0339678,118560.0,118550.0,0.70267044]
[1752676254799,0.00226126,118560.0,118550.0,1.21459713]
[1752676255057,0.08881,118660.0,118570.0,0.56627737]
[1752676255308,0.00785823,118660.0,118620.0,0.17703584]
[1752676255514,0.01045921,118630.0,118620.0,0.443]
[1752676255763,0.03053164,118630.0,118620.0,0.46604652]
[1752676256013,0.03053164,118630.0,118620.0,0.11754085]
[1752676256241,0.01685885,118630.0,118620.0,0.2051587]
[1752676256485,0.02210906,118630.0,118620.0,0.393]
[1752676256720,0.19070047,118630.0,118620.0,0.103]
[1752676256950,0.19070047,118630.0,118620.0,0.053]
[1752676257177,0.19070047,118630.0,118620.0,0.06037283]
[1752676257399,0.19070047,118630.0,118620.0,0.11037283]
[1752676257628,0.19070047,118630.0,118620.0,0.06037283]
[1752676257883,0.00842886,118640.0,118630.0,0.5]
[1752676258109,0.01685877,118630.0,118620.0,0.40137283]
[1752676258336,0.01685877,118630.0,118620.0,1.12644032]
[1752676258337,0.01888877,118630.0,118620.0,1.12644032]
[1752676258576,0.02731834,118630.0,118620.0,0.61897846]
[1752676259021,0.00942907,118630.0,118620.0,0.6408388]
[1752676259252,0.02628756,118630.0,118620.0,0.63240867]
[1752676259474,0.00842907,118630.0,118620.0,1.13887053]
[1752676259705,0.00842871,118640.0,118630.0,0.16859141]
[1752676259987,0.03574485,118640.0,118630.0,0.55859141]
[1752676260210,0.02731635,118640.0,118630.0,0.39]
[1752676260441,0.18746484,118640.0,118630.0,0.89646186]
[1752676260676,0.18225606,118640.0,118630.0,0.39]
[1752676261115,0.17700606,118640.0,118630.0,0.39]
[1752676261338,0.38303606,118640.0,118630.0,0.39]
[1752676261566,0.18225606,118640.0,118630.0,0.39]
[1752676261810,0.19775606,118640.0,118630.0,0.39]
[1752676262034,0.00050543,118660.0,118640.0,0.34]
[1752676262258,0.02578681,118660.0,118650.0,0.608563]
[1752676262500,0.00253543,118660.0,118650.0,0.56699115]
[1752676262729,0.00016973,118660.0,118650.0,1.65722845]
[1752676262963,0.01306,118690.0,118680.0,0.34]
[1752676263182,0.01306,118690.0,118680.0,1.06247336]
[1752676263183,0.03006168,118690.0,118680.0,1.06247336]
[1752676263407,0.19856787,118690.0,118680.0,0.37927306]
[1752676263641,0.00842672,118670.0,118660.0,0.05]
[1752676263873,0.17697615,118660.0,118650.0,0.42630306]
[1752676264107,0.16854427,118670.0,118660.0,0.03630306]
[1752676264344,0.16854427,118670.0,118660.0,0.37630306]
[1752676265016,0.16854427,118670.0,118660.0,0.5617065]
[1752676265231,0.17697099,118670.0,118660.0,1.06816836]
[1752676265451,0.17697099,118670.0,118660.0,0.88276492]
[1752676265700,0.17697099,118670.0,118660.0,0.37630306]
[1752676265932,0.16854427,118670.0,118660.0,0.36260529]
[1752676266654,0.16854427,118670.0,118660.0,0.86906715]
[1752676266882,0.16854427,118670.0,118660.0,0.36260529]
[1752676267114,0.37202427,118670.0,118660.0,0.36260529]
[1752676267337,0.37984489,118670.0,118660.0,0.86906715]
[1752676267601,0.37984489,118670.0,118660.0,0.36260529]
[1752676267796,0.37202427,118670.0,118660.0,0.36260529]
[1752676268019,0.37202427,118670.0,118660.0,0.86906715]
[1752676268268,0.37202427,118670.0,118660.0,0.36260529]
[1752676268487,0.37202427,118670.0,118660.0,0.86906715]
[1752676268696,0.37302427,118670.0,118660.0,0.36260529]
[1752676269353,0.37302427,118670.0,118660.0,0.86906715]
[1752676269582,0.37505427,118670.0,118660.0,0.86906715]
[1752676270012,0.37465427,118670.0,118660.0,0.87109715]
[1752676270226,0.37465427,118670.0,118660.0,0.36463529]
[1752676270435,0.37465427,118670.0,118660.0,0.87109715]
[1752676270870,0.37441427,118670.0,118660.0,0.36463529]
[1752676271320,0.00942623,118670.0,118660.0,1.10947031]
[1752676271543,0.02627946,118670.0,118660.0,1.13329725]
[1752676271778,0.20324049,118670.0,118660.0,0.92406715]
[1752676272015,0.18638782,118670.0,118660.0,0.92406715]
[1752676272257,0.16854879,118660.0,118650.0,0.55646186]
[1752676272470,0.18543455,118640.0,118630.0,0.39]
[1752676272708,0.37956591,118640.0,118630.0,0.89646186]
[1752676272922,0.17700591,118640.0,118630.0,0.55646186]
[1752676273137,0.17700591,118640.0,118630.0,0.07260529]
[1752676273351,0.17700591,118640.0,118630.0,0.57906715]
[1752676273784,0.17715737,118640.0,118630.0,0.92106715]
[1752676274638,0.17715737,118640.0,118630.0,0.392]
[1752676274854,0.17715737,118640.0,118630.0,0.91906715]
[1752676276843,0.17715737,118640.0,118630.0,0.41260529]
[1752676277061,0.17918737,118640.0,118630.0,0.91906715]
[1752676277287,0.17918737,118640.0,118630.0,0.41260529]
[1752676277515,0.17918737,118640.0,118630.0,0.91906715]
[1752676278177,0.17918737,118640.0,118630.0,0.89646186]
[1752676278404,0.17918737,118640.0,118630.0,0.9440507]
[1752676278629,0.17918737,118640.0,118630.0,0.43758884]
[1752676278843,0.17918737,118640.0,118630.0,0.9460807]
[1752676279724,0.17918737,118640.0,118630.0,1.11467211]
[1752676279960,0.17918737,118640.0,118630.0,0.43961884]
[1752676280185,0.17918737,118640.0,118630.0,1.1452007]
[1752676280409,0.17715737,118640.0,118630.0,1.1481707]
[1752676280845,0.16872866,118640.0,118630.0,1.1481707]
[1752676281058,0.16872866,118640.0,118630.0,1.15660027]
[1752676281296,0.16872866,118640.0,118630.0,1.1481707]
[1752676281518,0.16872866,118640.0,118630.0,0.64170884]
[1752676281796,0.16872866,118640.0,118630.0,1.1481707]
[1752676282011,0.16872866,118640.0,118630.0,1.32519168]
[1752676282234,0.00015146,118640.0,118630.0,1.33362117]
[1752676282457,0.02543668,118640.0,118630.0,1.38197952]
[1752676282692,0.00015146,118640.0,118630.0,2.83552866]
[1752676284252,6.544e-05,118640.0,118630.0,2.3290668]
[1752676284463,6.544e-05,118640.0,118630.0,2.83552866]
[1752676284914,6.544e-05,118640.0,118630.0,2.3290668]
[1752676285355,6.544e-05,118640.0,118630.0,2.83552866]
[1752676285623,6.544e-05,118640.0,118630.0,2.3290668]
[1752676286308,6.544e-05,118640.0,118630.0,2.83552866]
[1752676286991,6.544e-05,118640.0,118630.0,2.63640866]
[1752676287206,6.544e-05,118640.0,118630.0,1.82056494]
[1752676287410,6.544e-05,118640.0,118630.0,2.3264668]
[1752676287618,6.544e-05,118640.0,118630.0,3.3231618]
[1752676288065,4.94e-06,118640.0,118630.0,3.82962366]
[1752676288286,0.18664264,118700.0,118680.0,0.00842594]
[1752676288500,0.18537199,118680.0,118670.0,0.41260529]
[1752676288717,0.19045199,118680.0,118670.0,0.41260529]
[1752676288955,0.22135199,118680.0,118670.0,0.58752]
[1752676289168,0.22135199,118680.0,118670.0,0.56012529]
[1752676289420,0.22135199,118680.0,118670.0,0.02260529]
[1752676289629,0.30701359,118680.0,118670.0,0.56016529]
[1752676289841,0.19216117,118670.0,118660.0,0.05]
[1752676290051,0.17697608,118660.0,118650.0,0.07563529]
[1752676290259,0.17697608,118660.0,118650.0,0.07779529]
[1752676290470,0.17904608,118660.0,118650.0,0.27531529]
[1752676290692,0.176991,118650.0,118640.0,0.02260529]
[1752676290933,0.176991,118650.0,118640.0,0.22020529]
[1752676290934,0.179061,118650.0,118640.0,0.22020529]
[1752676291144,0.179061,118650.0,118640.0,0.86906715]
[1752676291365,0.179061,118650.0,118640.0,1.06662715]
[1752676291571,0.179061,118650.0,118640.0,0.56016529]
[1752676291775,0.179061,118650.0,118640.0,0.36260529]
[1752676292027,0.179061,118650.0,118640.0,0.56020529]
[1752676292230,0.179061,118650.0,118640.0,0.56216529]
[1752676292443,0.179061,118650.0,118640.0,1.06862715]
[1752676293097,0.179061,118650.0,118640.0,0.56216529]
[1752676293343,0.01685551,118650.0,118640.0,1.95140685]
[1752676293565,0.19384651,118650.0,118640.0,1.51180242]
[1752676293782,0.19384651,118650.0,118640.0,1.52023092]
[1752676294021,0.03371158,118650.0,118640.0,1.52865935]
[1752676294244,0.03371208,118650.0,118640.0,1.00534042]
[1752676294469,0.20227508,118650.0,118640.0,1.50337385]
[1752676294702,0.18541922,118650.0,118640.0,0.81990615]
[1752676294930,0.00842722,118660.0,118650.0,0.03946151]
[1752676295154,0.20225739,118660.0,118650.0,0.92636418]
[1752676295377,0.19383038,118660.0,118650.0,0.61128629]
[1752676295601,0.17697615,118660.0,118650.0,0.41779529]
[1752676296047,0.17697615,118660.0,118650.0,0.36779529]
[1752676296267,0.17904615,118660.0,118650.0,0.41476529]
[1752676296482,0.17904615,118660.0,118650.0,0.39216]
[1752676296705,0.176991,118650.0,118640.0,0.002]
[1752676296930,0.182071,118650.0,118640.0,0.22784529]
[1752676297214,0.179061,118650.0,118640.0,0.56780529]
[1752676297684,0.179061,118650.0,118640.0,0.5432]
[1752676297905,0.179061,118650.0,118640.0,0.02260529]
[1752676297906,0.29085328,118650.0,118640.0,0.02260529]
[1752676298133,0.16859141,118630.0,118620.0,0.01037283]
[1752676298361,0.21079083,118630.0,118620.0,0.23653812]
[1752676298578,0.21380083,118630.0,118620.0,0.21393283]
[1752676298803,0.21173083,118630.0,118620.0,0.00341882]
[1752676299472,0.29724111,118630.0,118620.0,0.00392425]
[1752676300397,0.29924111,118630.0,118620.0,0.00392425]
[1752676300628,0.50376111,118630.0,118620.0,0.00392425]
[1752676302619,0.20178132,118610.0,118600.0,0.35046763]
[1752676302834,0.3063016,118610.0,118600.0,0.35061909]
[1752676303050,0.3063016,118610.0,118600.0,0.85708095]
[1752676304182,0.2903016,118610.0,118600.0,0.34315146]
[1752676304408,0.3068016,118610.0,118600.0,0.00315146]
[1752676304640,0.3068016,118610.0,118580.0,0.003]
[1752676304641,0.2183126,118590.0,118580.0,0.003]
[1752676304944,0.28732288,118590.0,118580.0,0.343]
[1752676305165,0.49357288,118590.0,118580.0,0.343]
[1752676305609,0.50897288,118590.0,118580.0,0.343]
[1752676305833,0.30573288,118590.0,118580.0,0.84946186]
[1752676306084,0.49357288,118590.0,118580.0,0.003]
[1752676306310,0.50897288,118590.0,118580.0,0.343]
[1752676306983,0.2168439,118570.0,118560.0,0.003]
[1752676307209,0.30235418,118570.0,118560.0,0.003]
[1752676307436,0.30536418,118570.0,118560.0,0.003]
[1752676307651,0.30536418,118570.0,118540.0,0.02560529]
[1752676307652,0.18557519,118550.0,118540.0,0.003]
[1752676307868,0.50486547,118550.0,118540.0,0.003]
[1752676308095,0.50787547,118550.0,118540.0,0.003]
[1752676308312,0.30539547,118550.0,118540.0,0.003]
[1752676308530,0.50763547,118550.0,118540.0,0.003]
[1752676308752,0.30539547,118550.0,118540.0,0.003]
[1752676308967,0.50759547,118550.0,118540.0,0.003]
[1752676309823,0.50959547,118550.0,118540.0,0.003]
[1752676310032,0.50875547,118550.0,118540.0,0.003]
[1752676310245,0.50675547,118550.0,118540.0,0.003]
[1752676310448,0.47636547,118550.0,118540.0,0.07164301]
[1752676310663,0.47636547,118550.0,118540.0,0.003]